[Event "Titled Tuesday Blitz March 01 Early 2022"]
[White "Dolzhykova, Kateryna"]
[Black "Bryakin, Mikhail"]
[WhiteFideId "14113414"]
[BlackFideId "4165314"]
[WhiteElo "2165"]
[BlackElo "2421"]
[Result "0-1"]
[Round "01"]
[TimeControl "180+1"]
[Date "2022.03.01"]
[WhiteClock "0:00:07"]
[BlackClock "0:00:58"]

1. e4 {[%clk 0:03:00]}  e6 {[%clk 0:02:55]} 2. d3 {[%clk 0:03:00]}  d5 {[%clk 0:02:56]} 3. Nd2 {[%clk 0:03:01]}  c5 {[%clk 0:02:56]} 4. Ngf3 {[%clk 0:03:01]}  Nc6 {[%clk 0:02:56]} 5. g3 {[%clk 0:03:02]}  d4 {[%clk 0:02:55]} 6. Bg2 {[%clk 0:03:01]}  g6 {[%clk 0:02:55]} 7. O-O {[%clk 0:03:01]}  Bg7 {[%clk 0:02:55]} 8. Re1 {[%clk 0:03:02]}  e5 {[%clk 0:02:55]} 9. a4 {[%clk 0:03:01]}  Qc7 {[%clk 0:02:52]} 10. Nc4 {[%clk 0:03:01]}  Nge7 {[%clk 0:02:52]} 11. Qe2 {[%clk 0:02:52]}  O-O {[%clk 0:02:52]} 12. b3 {[%clk 0:02:44]}  b6 {[%clk 0:02:52]} 13. Nh4 {[%clk 0:02:43]}  Bd7 {[%clk 0:02:44]} 14. f4 {[%clk 0:02:43]}  exf4 {[%clk 0:02:44]} 15. Bxf4 {[%clk 0:02:44]}  Ne5 {[%clk 0:02:43]} 16. Nf3 {[%clk 0:02:42]}  N7c6 {[%clk 0:02:43]} 17. Nfxe5 {[%clk 0:02:31]}  Nxe5 {[%clk 0:02:44]} 18. Rf1 {[%clk 0:02:31]}  Rae8 {[%clk 0:02:43]} 19. Rf2 {[%clk 0:02:30]}  Be6 {[%clk 0:02:39]} 20. Nxe5 {[%clk 0:02:28]}  Bxe5 {[%clk 0:02:40]} 21. Raf1 {[%clk 0:02:28]}  Kg7 {[%clk 0:02:34]} 22. Qd2 {[%clk 0:02:24]}  Bxf4 {[%clk 0:02:35]} 23. gxf4 {[%clk 0:02:24]}  f5 {[%clk 0:02:35]} 24. e5 {[%clk 0:02:24]}  Qd7 {[%clk 0:02:32]} 25. h4 {[%clk 0:02:20]}  Bd5 {[%clk 0:02:30]} 26. Bxd5 {[%clk 0:02:19]}  Qxd5 {[%clk 0:02:31]} 27. Rg2 {[%clk 0:02:20]}  Kf7 {[%clk 0:02:26]} 28. Qe2 {[%clk 0:02:20]}  Rg8 {[%clk 0:02:26]} 29. h5 {[%clk 0:02:19]}  Qc6 {[%clk 0:02:21]} 30. Rf3 {[%clk 0:02:19]}  gxh5 {[%clk 0:02:13]} 31. Rfg3 {[%clk 0:02:19]}  Rg4 {[%clk 0:02:13]} 32. Rxg4 {[%clk 0:02:12]}  hxg4 {[%clk 0:02:12]} 33. Rh2 {[%clk 0:02:12]}  h6 {[%clk 0:02:07]} 34. Qf2 {[%clk 0:02:12]}  Kg7 {[%clk 0:02:05]} 35. Qh4 {[%clk 0:02:11]}  Qg6 {[%clk 0:02:04]} 36. Kg2 {[%clk 0:02:02]}  a6 {[%clk 0:02:01]} 37. Kg3 {[%clk 0:02:00]}  Qc6 {[%clk 0:01:58]} 38. Rf2 {[%clk 0:01:50]}  b5 {[%clk 0:01:58]} 39. axb5 {[%clk 0:01:51]}  axb5 {[%clk 0:01:59]} 40. Qh5 {[%clk 0:01:50]}  Qg6 {[%clk 0:01:58]} 41. Qh4 {[%clk 0:01:47]}  Qc6 {[%clk 0:01:58]} 42. Qh5 {[%clk 0:01:47]}  Rf8 {[%clk 0:01:57]} 43. Rf1 {[%clk 0:01:43]}  c4 {[%clk 0:01:57]} 44. bxc4 {[%clk 0:01:10]}  bxc4 {[%clk 0:01:58]} 45. Qh4 {[%clk 0:01:10]}  cxd3 {[%clk 0:01:42]} 46. cxd3 {[%clk 0:01:11]}  Qc2 {[%clk 0:01:42]} 47. Qh1 {[%clk 0:00:54]}  Qxd3+ {[%clk 0:01:41]} 48. Kh4 {[%clk 0:00:55]}  Rf7 {[%clk 0:01:30]} 49. Re1 {[%clk 0:00:26]}  Qd2 {[%clk 0:01:16]} 50. Rf1 {[%clk 0:00:11]}  d3 {[%clk 0:01:13]} 51. Qg1 {[%clk 0:00:06]}  Re7 {[%clk 0:01:06]} 52. Qf2 {[%clk 0:00:04]}  Qxf2+ {[%clk 0:01:03]} 53. Rxf2 {[%clk 0:00:05]}  Rd7 {[%clk 0:01:03]} 54. Rd2 {[%clk 0:00:05]}  Kf7 {[%clk 0:01:02]} 55. Kg3 {[%clk 0:00:03]}  h5 {[%clk 0:01:02]} 56. Kh4 {[%clk 0:00:04]}  Ke6 {[%clk 0:01:02]} 57. Kxh5 {[%clk 0:00:03]}  g3 {[%clk 0:01:02]} 58. Kh4 {[%clk 0:00:04]}  g2 {[%clk 0:01:03]} 59. Rxg2 {[%clk 0:00:04]}  d2 {[%clk 0:01:04]} 60. Rg6+ {[%clk 0:00:05]}  Ke7 {[%clk 0:01:02]} 61. Rg7+ {[%clk 0:00:05]}  Kd8 {[%clk 0:01:03]} 62. Rg8+ {[%clk 0:00:03]}  Kc7 {[%clk 0:01:03]} 63. e6 {[%clk 0:00:04]}  d1=Q {[%clk 0:00:57]} 64. exd7 {[%clk 0:00:05]}  Qh1+ {[%clk 0:00:58]} 65. Kg5 {[%clk 0:00:05]}  Qg2+ {[%clk 0:00:59]} 66. Kxf5 {[%clk 0:00:06]}  Qxg8 {[%clk 0:00:59]} 67. Kf6 {[%clk 0:00:06]}  Kxd7 {[%clk 0:00:59]} 68. f5 {[%clk 0:00:07]}  Ke8 {[%clk 0:00:58]} 0-1


[Site "https://www.chess.com"]

[Event "Titled Tuesday Blitz March 01 Early 2022"]
[White "Domingo Nunez, Alejandro"]
[Black "Kejzar, Petra"]
[WhiteFideId "22245561"]
[BlackFideId "14610213"]
[WhiteElo "2215"]
[BlackElo "2006"]
[Result "0-1"]
[Round "01"]
[TimeControl "180+1"]
[Date "2022.03.01"]
[WhiteClock "0:00:03"]
[BlackClock "0:00:11"]

1. Nf3 {[%clk 0:03:00]}  Nf6 {[%clk 0:02:57]} 2. g3 {[%clk 0:03:00]}  d5 {[%clk 0:02:54]} 3. Bg2 {[%clk 0:02:59]}  e6 {[%clk 0:02:50]} 4. O-O {[%clk 0:03:00]}  Be7 {[%clk 0:02:51]} 5. d3 {[%clk 0:02:59]}  O-O {[%clk 0:02:51]} 6. Nbd2 {[%clk 0:02:59]}  c5 {[%clk 0:02:52]} 7. b3 {[%clk 0:02:57]}  Nc6 {[%clk 0:02:52]} 8. Bb2 {[%clk 0:02:58]}  b6 {[%clk 0:02:51]} 9. e4 {[%clk 0:02:58]}  Bb7 {[%clk 0:02:48]} 10. e5 {[%clk 0:02:35]}  Nd7 {[%clk 0:02:47]} 11. Re1 {[%clk 0:02:36]}  Qc7 {[%clk 0:02:41]} 12. Nf1 {[%clk 0:02:30]}  d4 {[%clk 0:02:39]} 13. Qe2 {[%clk 0:02:30]}  Nb4 {[%clk 0:02:34]} 14. h4 {[%clk 0:02:28]}  a5 {[%clk 0:02:30]} 15. N1h2 {[%clk 0:02:22]}  a4 {[%clk 0:02:30]} 16. h5 {[%clk 0:02:15]}  axb3 {[%clk 0:02:20]} 17. axb3 {[%clk 0:02:16]}  Rxa1 {[%clk 0:02:16]} 18. Bxa1 {[%clk 0:02:00]}  Ra8 {[%clk 0:02:17]} 19. h6 {[%clk 0:01:57]}  g6 {[%clk 0:02:08]} 20. Ng4 {[%clk 0:01:56]}  Ra2 {[%clk 0:02:00]} 21. Rc1 {[%clk 0:01:08]}  Bxf3 {[%clk 0:01:58]} 22. Qxf3 {[%clk 0:01:04]}  Bg5 {[%clk 0:01:58]} 23. Rf1 {[%clk 0:01:00]}  Nxc2 {[%clk 0:01:52]} 24. Qe4 {[%clk 0:00:52]}  Nxa1 {[%clk 0:01:39]} 25. f4 {[%clk 0:00:37]}  Be7 {[%clk 0:01:33]} 26. Rb1 {[%clk 0:00:16]}  Nc2 {[%clk 0:01:20]} 27. Qe2 {[%clk 0:00:16]}  Nb4 {[%clk 0:01:19]} 28. Qf3 {[%clk 0:00:16]}  Nd5 {[%clk 0:01:10]} 29. Nf2 {[%clk 0:00:15]}  Nc3 {[%clk 0:01:06]} 30. Re1 {[%clk 0:00:14]}  b5 {[%clk 0:01:06]} 31. g4 {[%clk 0:00:13]}  Nb6 {[%clk 0:01:05]} 32. f5 {[%clk 0:00:12]}  Nbd5 {[%clk 0:00:55]} 33. fxg6 {[%clk 0:00:12]}  hxg6 {[%clk 0:00:53]} 34. h7+ {[%clk 0:00:11]}  Kxh7 {[%clk 0:00:51]} 35. Qxf7+ {[%clk 0:00:11]}  Kh8 {[%clk 0:00:50]} 36. g5 {[%clk 0:00:06]}  Bxg5 {[%clk 0:00:35]} 37. Qxg6 {[%clk 0:00:07]}  Qg7 {[%clk 0:00:28]} 38. Qe8+ {[%clk 0:00:07]}  Kh7 {[%clk 0:00:25]} 39. Kh1 {[%clk 0:00:04]}  Qh6+ {[%clk 0:00:22]} 40. Nh3 {[%clk 0:00:04]}  Bf4 {[%clk 0:00:17]} 41. Qf7+ {[%clk 0:00:03]}  Qg7 {[%clk 0:00:15]} 42. Qh5+ {[%clk 0:00:04]}  Kg8 {[%clk 0:00:14]} 43. Bf3 {[%clk 0:00:03]}  Qg3 {[%clk 0:00:11]} 0-1


[Site "https://www.chess.com"]

[Event "Titled Tuesday Blitz March 01 Early 2022"]
[White "Dovbnia, Nikita"]
[Black "Ooi, Zhi Yang"]
[WhiteFideId "54104599"]
[BlackFideId "5709270"]
[WhiteElo "2111"]
[BlackElo "1802"]
[Result "0-1"]
[Round "01"]
[TimeControl "180+1"]
[Date "2022.03.01"]
[WhiteClock "0:00:19"]
[BlackClock "0:01:08"]

1. Nf3 {[%clk 0:02:59]}  d5 {[%clk 0:02:56]} 2. d3 {[%clk 0:02:59]}  Nf6 {[%clk 0:02:54]} 3. g3 {[%clk 0:02:59]}  e6 {[%clk 0:02:48]} 4. Bg2 {[%clk 0:03:00]}  Be7 {[%clk 0:02:48]} 5. O-O {[%clk 0:03:00]}  O-O {[%clk 0:02:49]} 6. c4 {[%clk 0:03:00]}  c6 {[%clk 0:02:48]} 7. Nc3 {[%clk 0:02:57]}  Nbd7 {[%clk 0:02:48]} 8. Qc2 {[%clk 0:02:51]}  b6 {[%clk 0:02:46]} 9. b3 {[%clk 0:02:50]}  Bb7 {[%clk 0:02:46]} 10. Bb2 {[%clk 0:02:50]}  Rc8 {[%clk 0:02:46]} 11. Rac1 {[%clk 0:02:50]}  dxc4 {[%clk 0:02:46]} 12. dxc4 {[%clk 0:02:49]}  Qc7 {[%clk 0:02:43]} 13. Rfd1 {[%clk 0:02:45]}  Rfd8 {[%clk 0:02:42]} 14. Rd2 {[%clk 0:02:32]}  Nc5 {[%clk 0:02:37]} 15. Rcd1 {[%clk 0:02:27]}  Rxd2 {[%clk 0:02:33]} 16. Rxd2 {[%clk 0:02:28]}  a5 {[%clk 0:02:32]} 17. e4 {[%clk 0:01:48]}  Rd8 {[%clk 0:02:25]} 18. e5 {[%clk 0:01:41]}  Nfd7 {[%clk 0:02:15]} 19. Ne4 {[%clk 0:01:38]}  Nxe4 {[%clk 0:02:10]} 20. Qxe4 {[%clk 0:01:38]}  c5 {[%clk 0:02:09]} 21. Qe2 {[%clk 0:01:34]}  Nf8 {[%clk 0:02:09]} 22. Rxd8 {[%clk 0:01:30]}  Qxd8 {[%clk 0:02:05]} 23. Qd2 {[%clk 0:01:26]}  Qa8 {[%clk 0:01:56]} 24. Ne1 {[%clk 0:01:21]}  Ng6 {[%clk 0:01:54]} 25. Qd7 {[%clk 0:01:11]}  Bxg2 {[%clk 0:01:51]} 26. Nxg2 {[%clk 0:01:12]}  a4 {[%clk 0:01:50]} 27. h4 {[%clk 0:01:09]}  axb3 {[%clk 0:01:48]} 28. axb3 {[%clk 0:01:08]}  h5 {[%clk 0:01:42]} 29. Qd3 {[%clk 0:00:38]}  Qa2 {[%clk 0:01:29]} 30. Qc2 {[%clk 0:00:38]}  Nxe5 {[%clk 0:01:25]} 31. Nf4 {[%clk 0:00:33]}  g6 {[%clk 0:01:22]} 32. Qc3 {[%clk 0:00:32]}  Bf6 {[%clk 0:01:17]} 33. Qc2 {[%clk 0:00:19]}  Nf3+ {[%clk 0:01:09]} 34. Kg2 {[%clk 0:00:19]}  Ne1+ {[%clk 0:01:08]} 0-1


[Site "https://www.chess.com"]

[Event "Titled Tuesday Blitz March 01 Early 2022"]
[White "Durarbayli, Vasif"]
[Black "Kuzmin, Roman"]
[WhiteFideId "13402935"]
[BlackFideId "44134932"]
[WhiteElo "2528"]
[BlackElo "1978"]
[Result "1-0"]
[Round "01"]
[TimeControl "180+1"]
[Date "2022.03.01"]
[WhiteClock "0:02:00"]
[BlackClock "0:01:06"]

1. e4 {[%clk 0:03:00]}  c5 {[%clk 0:02:53]} 2. Nf3 {[%clk 0:02:57]}  d6 {[%clk 0:02:53]} 3. d4 {[%clk 0:02:56]}  cxd4 {[%clk 0:02:54]} 4. Nxd4 {[%clk 0:02:57]}  Nf6 {[%clk 0:02:54]} 5. Nc3 {[%clk 0:02:57]}  a6 {[%clk 0:02:53]} 6. h4 {[%clk 0:02:54]}  e5 {[%clk 0:02:50]} 7. Nf5 {[%clk 0:02:37]}  d5 {[%clk 0:02:31]} 8. Qf3 {[%clk 0:02:35]}  Bb4 {[%clk 0:01:53]} 9. Nxg7+ {[%clk 0:02:27]}  Ke7 {[%clk 0:01:05]} 10. Bg5 {[%clk 0:02:19]}  Nd7 {[%clk 0:01:06]} 11. Nh5 {[%clk 0:02:00]} 1-0


[Site "https://www.chess.com"]

[Event "Titled Tuesday Blitz March 01 Early 2022"]
[White "Gabdrakhmanov, Azat"]
[Black "Marzaduri, Riccardo"]
[WhiteFideId "34189197"]
[BlackFideId "886084"]
[WhiteElo "2279"]
[BlackElo "2200"]
[Result "0-1"]
[Round "01"]
[TimeControl "180+1"]
[Date "2022.03.01"]
[WhiteClock "0:00:19"]
[BlackClock "0:00:05"]

1. e4 {[%clk 0:03:00]}  e6 {[%clk 0:03:00]} 2. d4 {[%clk 0:03:00]}  d5 {[%clk 0:03:00]} 3. e5 {[%clk 0:03:01]}  c5 {[%clk 0:03:00]} 4. c3 {[%clk 0:03:00]}  Nc6 {[%clk 0:03:00]} 5. Nf3 {[%clk 0:03:00]}  Nge7 {[%clk 0:03:00]} 6. a3 {[%clk 0:02:59]}  Nf5 {[%clk 0:02:55]} 7. b4 {[%clk 0:02:58]}  cxd4 {[%clk 0:02:53]} 8. cxd4 {[%clk 0:02:59]}  Bd7 {[%clk 0:02:53]} 9. Be3 {[%clk 0:02:57]}  b5 {[%clk 0:02:48]} 10. Bd3 {[%clk 0:02:51]}  Nxe3 {[%clk 0:02:25]} 11. fxe3 {[%clk 0:02:48]}  a5 {[%clk 0:02:25]} 12. bxa5 {[%clk 0:02:48]}  Qxa5+ {[%clk 0:02:21]} 13. Nbd2 {[%clk 0:02:48]}  Be7 {[%clk 0:02:03]} 14. O-O {[%clk 0:02:40]}  O-O {[%clk 0:02:02]} 15. Qe2 {[%clk 0:02:39]}  Rab8 {[%clk 0:01:36]} 16. Kh1 {[%clk 0:02:28]}  f5 {[%clk 0:01:29]} 17. exf6 {[%clk 0:02:03]}  Bxf6 {[%clk 0:01:26]} 18. Rab1 {[%clk 0:01:57]}  Qxa3 {[%clk 0:01:15]} 19. Bxb5 {[%clk 0:01:54]}  Qd6 {[%clk 0:00:56]} 20. Bxc6 {[%clk 0:01:36]}  Bxc6 {[%clk 0:00:55]} 21. e4 {[%clk 0:01:36]}  Qd7 {[%clk 0:00:20]} 22. Rxb8 {[%clk 0:01:08]}  Rxb8 {[%clk 0:00:19]} 23. Re1 {[%clk 0:01:04]}  Bb5 {[%clk 0:00:17]} 24. Qe3 {[%clk 0:01:02]}  Re8 {[%clk 0:00:15]} 25. h3 {[%clk 0:01:01]}  Bc6 {[%clk 0:00:13]} 26. Rb1 {[%clk 0:00:55]}  h6 {[%clk 0:00:13]} 27. Rc1 {[%clk 0:00:54]}  Qb7 {[%clk 0:00:11]} 28. Nb3 {[%clk 0:00:40]}  dxe4 {[%clk 0:00:09]} 29. Nc5 {[%clk 0:00:40]}  Qa8 {[%clk 0:00:07]} 30. Ne5 {[%clk 0:00:38]}  Bxe5 {[%clk 0:00:05]} 31. dxe5 {[%clk 0:00:39]}  Bd5 {[%clk 0:00:06]} 32. Nd7 {[%clk 0:00:29]}  Qd8 {[%clk 0:00:04]} 33. Nb6 {[%clk 0:00:28]}  Qe7 {[%clk 0:00:04]} 34. Rd1 {[%clk 0:00:26]}  Rd8 {[%clk 0:00:04]} 35. Kg1 {[%clk 0:00:16]}  Qc7 {[%clk 0:00:04]} 36. Nxd5 {[%clk 0:00:15]}  exd5 {[%clk 0:00:05]} 37. Qd4 {[%clk 0:00:14]}  Qc6 {[%clk 0:00:03]} 38. Kh1 {[%clk 0:00:13]}  Qe6 {[%clk 0:00:03]} 39. Rb1 {[%clk 0:00:12]}  Kh7 {[%clk 0:00:04]} 40. Rb7 {[%clk 0:00:12]}  Rd7 {[%clk 0:00:03]} 41. Rb6 {[%clk 0:00:11]}  Qe7 {[%clk 0:00:03]} 42. e6 {[%clk 0:00:11]}  Rd6 {[%clk 0:00:02]} 43. Rb5 {[%clk 0:00:11]}  Qxe6 {[%clk 0:00:03]} 44. Rb7 {[%clk 0:00:11]}  Rd7 {[%clk 0:00:03]} 45. Rb6 {[%clk 0:00:12]}  Rd6 {[%clk 0:00:03]} 46. Rb8 {[%clk 0:00:11]}  Qg6 {[%clk 0:00:03]} 47. Rf8 {[%clk 0:00:10]}  Rf6 {[%clk 0:00:03]} 48. Qe5 {[%clk 0:00:10]}  Rxf8 {[%clk 0:00:03]} 49. Qxd5 {[%clk 0:00:09]}  Qf5 {[%clk 0:00:03]} 50. Qd2 {[%clk 0:00:09]}  Qf1+ {[%clk 0:00:03]} 51. Kh2 {[%clk 0:00:09]}  Qf4+ {[%clk 0:00:04]} 52. Qxf4 {[%clk 0:00:10]}  Rxf4 {[%clk 0:00:05]} 53. Kg3 {[%clk 0:00:11]}  Rf6 {[%clk 0:00:05]} 54. h4 {[%clk 0:00:11]}  e3 {[%clk 0:00:06]} 55. h5 {[%clk 0:00:12]}  e2 {[%clk 0:00:06]} 56. Kh4 {[%clk 0:00:13]}  e1=Q+ {[%clk 0:00:07]} 57. g3 {[%clk 0:00:14]}  Qh1+ {[%clk 0:00:06]} 58. Kg4 {[%clk 0:00:15]}  Qf3+ {[%clk 0:00:06]} 59. Kh3 {[%clk 0:00:16]}  Qxh5+ {[%clk 0:00:05]} 60. Kg2 {[%clk 0:00:16]}  Qd5+ {[%clk 0:00:05]} 61. Kh3 {[%clk 0:00:17]}  Rg6 {[%clk 0:00:05]} 62. g4 {[%clk 0:00:18]}  Qf3+ {[%clk 0:00:05]} 63. Kh4 {[%clk 0:00:19]}  Qxg4# {[%clk 0:00:05]} 0-1


[Site "https://www.chess.com"]

[Event "Titled Tuesday Blitz March 01 Early 2022"]
[White "Garagulya, Konstantin"]
[Black "Vokhidov, Shamsiddin"]
[WhiteFideId "4128931"]
[BlackFideId "14204223"]
[WhiteElo "2329"]
[BlackElo "2611"]
[Result "0-1"]
[Round "01"]
[TimeControl "180+1"]
[Date "2022.03.01"]
[WhiteClock "0:00:07"]
[BlackClock "0:01:25"]

1. d4 {[%clk 0:02:59]}  Nf6 {[%clk 0:03:00]} 2. Nf3 {[%clk 0:02:55]}  d5 {[%clk 0:02:59]} 3. c4 {[%clk 0:02:54]}  e6 {[%clk 0:03:00]} 4. Bg5 {[%clk 0:02:53]}  Bb4+ {[%clk 0:02:57]} 5. Nbd2 {[%clk 0:02:53]}  dxc4 {[%clk 0:02:57]} 6. Qa4+ {[%clk 0:02:49]}  Nc6 {[%clk 0:02:56]} 7. a3 {[%clk 0:02:43]}  Bxd2+ {[%clk 0:02:55]} 8. Bxd2 {[%clk 0:02:42]}  Qd5 {[%clk 0:02:51]} 9. e4 {[%clk 0:02:19]}  Qxe4+ {[%clk 0:02:50]} 10. Be3 {[%clk 0:02:15]}  O-O {[%clk 0:02:35]} 11. Qxc4 {[%clk 0:02:11]}  Nd5 {[%clk 0:02:33]} 12. O-O-O {[%clk 0:02:04]}  Nxe3 {[%clk 0:02:24]} 13. fxe3 {[%clk 0:02:03]}  Qxe3+ {[%clk 0:02:25]} 14. Kb1 {[%clk 0:01:57]}  e5 {[%clk 0:02:15]} 15. Re1 {[%clk 0:01:47]}  Qf4 {[%clk 0:02:13]} 16. dxe5 {[%clk 0:01:45]}  Bf5+ {[%clk 0:02:11]} 17. Ka1 {[%clk 0:01:43]}  Qxc4 {[%clk 0:02:08]} 18. Bxc4 {[%clk 0:01:44]}  Rad8 {[%clk 0:02:07]} 19. e6 {[%clk 0:01:20]}  Bxe6 {[%clk 0:02:06]} 20. Bxe6 {[%clk 0:01:17]}  fxe6 {[%clk 0:02:07]} 21. Rxe6 {[%clk 0:01:18]}  Rd7 {[%clk 0:02:07]} 22. Rhe1 {[%clk 0:01:16]}  h6 {[%clk 0:02:06]} 23. h4 {[%clk 0:01:15]}  Nd4 {[%clk 0:02:03]} 24. Nxd4 {[%clk 0:01:14]}  Rxd4 {[%clk 0:02:04]} 25. g3 {[%clk 0:01:03]}  Rd3 {[%clk 0:01:59]} 26. Rg6 {[%clk 0:00:52]}  Rf6 {[%clk 0:01:49]} 27. Rxf6 {[%clk 0:00:51]}  gxf6 {[%clk 0:01:50]} 28. Re7 {[%clk 0:00:45]}  Rxg3 {[%clk 0:01:49]} 29. Rxc7 {[%clk 0:00:46]}  Rg7 {[%clk 0:01:50]} 30. Rc4 {[%clk 0:00:37]}  f5 {[%clk 0:01:45]} 31. Rf4 {[%clk 0:00:26]}  Rf7 {[%clk 0:01:43]} 32. Ka2 {[%clk 0:00:25]}  Kg7 {[%clk 0:01:43]} 33. Kb3 {[%clk 0:00:26]}  Kf6 {[%clk 0:01:43]} 34. Kc4 {[%clk 0:00:26]}  Ke5 {[%clk 0:01:43]} 35. Rf1 {[%clk 0:00:26]}  f4 {[%clk 0:01:39]} 36. Kd3 {[%clk 0:00:21]}  Rd7+ {[%clk 0:01:35]} 37. Ke2 {[%clk 0:00:21]}  Ke4 {[%clk 0:01:35]} 38. Rc1 {[%clk 0:00:13]}  f3+ {[%clk 0:01:35]} 39. Kf1 {[%clk 0:00:14]}  Rd2 {[%clk 0:01:29]} 40. Rc4+ {[%clk 0:00:14]}  Ke3 {[%clk 0:01:29]} 41. Rc3+ {[%clk 0:00:15]}  Kf4 {[%clk 0:01:30]} 42. Rb3 {[%clk 0:00:14]}  Kg3 {[%clk 0:01:28]} 43. Ke1 {[%clk 0:00:14]}  Re2+ {[%clk 0:01:29]} 44. Kf1 {[%clk 0:00:12]}  Rc2 {[%clk 0:01:29]} 45. Ke1 {[%clk 0:00:11]}  Kg2 {[%clk 0:01:28]} 46. Kd1 {[%clk 0:00:07]}  Rc7 {[%clk 0:01:25]} 0-1


[Site "https://www.chess.com"]

[Event "Titled Tuesday Blitz March 01 Early 2022"]
[White "Garriga Cazorla, Pere"]
[Black "Pasti, Aron"]
[WhiteFideId "32011601"]
[BlackFideId "785857"]
[WhiteElo "2458"]
[BlackElo "2080"]
[Result "1-0"]
[Round "01"]
[TimeControl "180+1"]
[Date "2022.03.01"]
[WhiteClock "0:01:12"]
[BlackClock "0:00:09"]

1. d4 {[%clk 0:02:55]}  d5 {[%clk 0:02:44]} 2. c4 {[%clk 0:02:53]}  e6 {[%clk 0:02:43]} 3. Nc3 {[%clk 0:02:52]}  Nf6 {[%clk 0:02:42]} 4. cxd5 {[%clk 0:02:52]}  exd5 {[%clk 0:02:41]} 5. Bg5 {[%clk 0:02:52]}  Be7 {[%clk 0:02:39]} 6. e3 {[%clk 0:02:52]}  h6 {[%clk 0:02:39]} 7. Bh4 {[%clk 0:02:52]}  O-O {[%clk 0:02:32]} 8. Bd3 {[%clk 0:02:51]}  Bg4 {[%clk 0:02:22]} 9. Qc2 {[%clk 0:02:48]}  Nbd7 {[%clk 0:02:16]} 10. h3 {[%clk 0:02:46]}  Bh5 {[%clk 0:02:16]} 11. g4 {[%clk 0:02:42]}  Bg6 {[%clk 0:02:07]} 12. Bxg6 {[%clk 0:02:40]}  fxg6 {[%clk 0:02:08]} 13. Qxg6 {[%clk 0:02:40]}  Re8 {[%clk 0:01:58]} 14. Nge2 {[%clk 0:02:27]}  Ne4 {[%clk 0:01:57]} 15. Bxe7 {[%clk 0:02:22]}  Qxe7 {[%clk 0:01:58]} 16. Nxd5 {[%clk 0:02:07]}  Qd8 {[%clk 0:01:51]} 17. Nef4 {[%clk 0:01:50]}  c6 {[%clk 0:01:50]} 18. Nh5 {[%clk 0:01:47]}  Re7 {[%clk 0:01:21]} 19. Nxe7+ {[%clk 0:01:41]}  Qxe7 {[%clk 0:01:22]} 20. O-O {[%clk 0:01:39]}  Rf8 {[%clk 0:01:14]} 21. Nf4 {[%clk 0:01:36]}  Ng5 {[%clk 0:01:06]} 22. Kg2 {[%clk 0:01:30]}  Rf6 {[%clk 0:00:42]} 23. Qd3 {[%clk 0:01:28]}  Qd6 {[%clk 0:00:35]} 24. f3 {[%clk 0:01:20]}  c5 {[%clk 0:00:24]} 25. Rad1 {[%clk 0:01:16]}  cxd4 {[%clk 0:00:21]} 26. Qxd4 {[%clk 0:01:16]}  Qxd4 {[%clk 0:00:17]} 27. Rxd4 {[%clk 0:01:17]}  Ne5 {[%clk 0:00:17]} 28. h4 {[%clk 0:01:17]}  Ngxf3 {[%clk 0:00:15]} 29. Rxf3 {[%clk 0:01:15]}  Nxf3 {[%clk 0:00:15]} 30. Kxf3 {[%clk 0:01:16]}  g5 {[%clk 0:00:15]} 31. hxg5 {[%clk 0:01:15]}  hxg5 {[%clk 0:00:16]} 32. Rd7 {[%clk 0:01:14]}  gxf4 {[%clk 0:00:15]} 33. exf4 {[%clk 0:01:15]}  Rb6 {[%clk 0:00:14]} 34. b3 {[%clk 0:01:14]}  Ra6 {[%clk 0:00:13]} 35. Rxb7 {[%clk 0:01:13]}  Rxa2 {[%clk 0:00:13]} 36. g5 {[%clk 0:01:14]}  Ra3 {[%clk 0:00:13]} 37. Kg4 {[%clk 0:01:14]}  a5 {[%clk 0:00:12]} 38. Kh5 {[%clk 0:01:14]}  a4 {[%clk 0:00:12]} 39. bxa4 {[%clk 0:01:14]}  Rxa4 {[%clk 0:00:10]} 40. f5 {[%clk 0:01:15]}  Ra5 {[%clk 0:00:09]} 41. Kg6 {[%clk 0:01:14]}  Ra6+ {[%clk 0:00:09]} 42. f6 {[%clk 0:01:14]}  Kf8 {[%clk 0:00:09]} 43. Rb8# {[%clk 0:01:12]} 1-0


[Site "https://www.chess.com"]

[Event "Titled Tuesday Blitz March 01 Early 2022"]
[White "Gerbelli Neto, Eduardo"]
[Black "Janaszak, Dawid"]
[WhiteFideId "2103281"]
[BlackFideId "1119206"]
[WhiteElo "2178"]
[BlackElo "2199"]
[Result "0-1"]
[Round "01"]
[TimeControl "180+1"]
[Date "2022.03.01"]
[WhiteClock "0:00:17"]
[BlackClock "0:00:16"]

1. e4 {[%clk 0:02:59]}  c5 {[%clk 0:02:54]} 2. Nc3 {[%clk 0:02:58]}  Nc6 {[%clk 0:02:51]} 3. f4 {[%clk 0:02:59]}  g6 {[%clk 0:02:50]} 4. Nf3 {[%clk 0:03:00]}  Bg7 {[%clk 0:02:50]} 5. Bc4 {[%clk 0:02:59]}  e6 {[%clk 0:02:50]} 6. f5 {[%clk 0:02:59]}  Nge7 {[%clk 0:02:49]} 7. fxe6 {[%clk 0:03:00]}  fxe6 {[%clk 0:02:50]} 8. d3 {[%clk 0:03:00]}  O-O {[%clk 0:02:49]} 9. O-O {[%clk 0:03:01]}  d5 {[%clk 0:02:49]} 10. Bb3 {[%clk 0:03:01]}  Na5 {[%clk 0:02:38]} 11. Bg5 {[%clk 0:03:01]}  Nxb3 {[%clk 0:02:37]} 12. axb3 {[%clk 0:03:02]}  d4 {[%clk 0:02:34]} 13. Na4 {[%clk 0:03:00]}  h6 {[%clk 0:02:29]} 14. Bxe7 {[%clk 0:03:00]}  Qxe7 {[%clk 0:02:30]} 15. Nb6 {[%clk 0:03:01]}  Rb8 {[%clk 0:02:27]} 16. Rxa7 {[%clk 0:03:01]}  Qd6 {[%clk 0:02:12]} 17. Nc4 {[%clk 0:02:58]}  Qf4 {[%clk 0:02:10]} 18. Qe1 {[%clk 0:02:12]}  b5 {[%clk 0:02:03]} 19. Ncd2 {[%clk 0:02:12]}  Rb7 {[%clk 0:01:58]} 20. Rxb7 {[%clk 0:02:10]}  Bxb7 {[%clk 0:01:59]} 21. Qg3 {[%clk 0:02:01]}  Qxg3 {[%clk 0:01:50]} 22. hxg3 {[%clk 0:02:02]}  Ra8 {[%clk 0:01:47]} 23. b4 {[%clk 0:01:37]}  cxb4 {[%clk 0:01:36]} 24. Nb3 {[%clk 0:01:37]}  e5 {[%clk 0:01:27]} 25. Nfd2 {[%clk 0:01:28]}  Rc8 {[%clk 0:01:22]} 26. Rc1 {[%clk 0:01:23]}  h5 {[%clk 0:01:22]} 27. Kf2 {[%clk 0:01:22]}  Bh6 {[%clk 0:01:22]} 28. Ke2 {[%clk 0:01:23]}  Rc7 {[%clk 0:01:18]} 29. Kd1 {[%clk 0:01:09]}  Bc8 {[%clk 0:01:18]} 30. Ra1 {[%clk 0:01:06]}  Bg4+ {[%clk 0:01:16]} 31. Nf3 {[%clk 0:01:04]}  Be3 {[%clk 0:01:03]} 32. Ra5 {[%clk 0:01:04]}  Rb7 {[%clk 0:00:53]} 33. Ke2 {[%clk 0:00:53]}  g5 {[%clk 0:00:51]} 34. Nc5 {[%clk 0:00:49]}  Rf7 {[%clk 0:00:48]} 35. Rxb5 {[%clk 0:00:44]}  h4 {[%clk 0:00:48]} 36. gxh4 {[%clk 0:00:41]}  gxh4 {[%clk 0:00:49]} 37. Rb8+ {[%clk 0:00:40]}  Kg7 {[%clk 0:00:45]} 38. c3 {[%clk 0:00:40]}  bxc3 {[%clk 0:00:44]} 39. bxc3 {[%clk 0:00:41]}  h3 {[%clk 0:00:44]} 40. cxd4 {[%clk 0:00:36]}  Bxd4 {[%clk 0:00:37]} 41. Ne6+ {[%clk 0:00:26]}  Bxe6 {[%clk 0:00:33]} 42. gxh3 {[%clk 0:00:26]}  Bxh3 {[%clk 0:00:27]} 43. Nxd4 {[%clk 0:00:26]}  exd4 {[%clk 0:00:26]} 44. Rd8 {[%clk 0:00:26]}  Rd7 {[%clk 0:00:25]} 45. Rb8 {[%clk 0:00:24]}  Bg4+ {[%clk 0:00:21]} 46. Kf2 {[%clk 0:00:24]}  Kf6 {[%clk 0:00:19]} 47. Kg3 {[%clk 0:00:24]}  Be2 {[%clk 0:00:19]} 48. Rb3 {[%clk 0:00:22]}  Ke5 {[%clk 0:00:17]} 49. Rb5+ {[%clk 0:00:21]}  Ke6 {[%clk 0:00:16]} 50. Rb3 {[%clk 0:00:21]}  Rf7 {[%clk 0:00:15]} 51. Rb4 {[%clk 0:00:18]}  Ke5 {[%clk 0:00:14]} 52. Rb5+ {[%clk 0:00:17]}  Ke6 {[%clk 0:00:14]} 53. Rb3 {[%clk 0:00:17]}  Rf3+ {[%clk 0:00:14]} 54. Kg2 {[%clk 0:00:17]}  Rxd3 {[%clk 0:00:15]} 55. Rxd3 {[%clk 0:00:16]}  Bxd3 {[%clk 0:00:15]} 56. Kf3 {[%clk 0:00:17]}  Ke5 {[%clk 0:00:16]} 0-1


[Site "https://www.chess.com"]